bitfinex-derivatives/quotes_SOLF0:USTF0_20220106
["timestamp","ask_amount","ask_price","bid_price","bid_amount"]
[1641498705454,16.90131826,153.81,153.74,13.7584496]
[1641498706156,57.2533,153.82,153.74,13.7584496]
[1641498706657,27.66479,153.81,153.74,13.7584496]
[1641498706856,44.56511177,153.81,153.74,13.7584496]
[1641498707656,27.66479,153.81,153.74,13.7584496]
[1641498707857,3.14124501,153.8,153.74,13.7584496]
[1641498708361,27.66479,153.81,153.74,13.7584496]
[1641498708558,41.4241453,153.81,153.74,13.7584496]
[1641498708759,41.4241453,153.81,153.74,17.7584496]
[1641498709358,13.7593553,153.81,153.74,17.7584496]
[1641498709558,9.84,153.83,153.75,4.0]
[1641498709760,3.14114658,153.8,153.75,19.20364695]
[1641498710259,3.14114658,153.8,153.75,15.20364695]
[1641498710559,3.14018748,153.83,153.78,13.7584496]
[1641498711462,41.42148277,153.84,153.77,13.7584496]
[1641498712062,13.75669277,153.84,153.8,4.0]
[1641498712263,13.75543005,153.86,153.8,10.928]
[1641498712463,13.75543005,153.86,153.82,4.0]
[1641498712663,13.75543005,153.86,153.82,31.66479]
[1641498713065,13.75543005,153.86,153.82,27.66479]
[1641498713265,36.76729395,153.9,153.82,27.66479]
[1641498713465,36.76729395,153.9,153.83,1.44519735]
[1641498713666,16.89258968,153.88,153.83,1.44519735]
[1641498714568,4.0,153.9,153.82,27.66479]
[1641498714768,13.75311914,153.89,153.82,41.4232396]
[1641498715468,16.89187717,153.89,153.83,1.44560965]
[1641498716169,20.89187717,153.89,153.82,13.7584496]
[1641498716371,13.75311914,153.88,153.8,13.7584496]
[1641498716569,59.6572,153.87,153.8,13.7584496]
[1641498716872,27.66479,153.84,153.8,13.7584496]
[1641498717069,5.455,153.84,153.8,13.7584496]
[1641498717471,5.455,153.84,153.78,13.7584496]
[1641498718471,3.13875803,153.83,153.77,22.11522102]
[1641498719275,62.2268,153.83,153.77,22.11522102]
[1641498720175,62.2268,153.83,153.77,15.20386755]
[1641498720374,3.14057202,153.82,153.77,1.44541795]
[1641498721375,64.43208395,153.86,153.76,41.4232396]
[1641498721579,58.7274,153.85,153.76,41.4232396]
[1641498721976,58.7274,153.85,153.76,45.4232396]
[1641498722178,58.7274,153.85,153.76,41.4232396]
[1641498722378,16.89754505,153.84,153.77,22.11519674]
[1641498723781,20.89754505,153.84,153.77,22.11519674]
[1641498724279,16.89754505,153.84,153.77,22.11519674]
[1641498724880,13.75619477,153.85,153.78,13.7584496]
[1641498725080,13.75619477,153.85,153.78,17.7584496]
[1641498725282,13.75619477,153.85,153.78,13.7584496]
[1641498725683,16.89465537,153.86,153.79,15.20379472]
[1641498725885,16.89465537,153.86,153.79,22.26479472]
[1641498726684,58.3214,153.87,153.8,1.44534512]
[1641498727487,58.3214,153.87,153.79,13.7584496]
[1641498727686,13.75637129,153.85,153.78,13.7584496]
[1641498728689,14.57052065,153.86,153.78,13.7584496]
[1641498729392,13.75619039,153.85,153.78,13.7584496]
[1641498730290,16.89558321,153.86,153.79,13.7584496]
[1641498730491,16.89558321,153.86,153.79,18.4374496]
[1641498730994,58.3214,153.87,153.79,18.4374496]
[1641498731193,58.3214,153.87,153.8,1.44534512]
[1641498732097,16.89538683,153.86,153.8,1.44534512]
[1641498732798,6.184,153.86,153.8,15.20379472]
[1641498733000,4.0,153.85,153.8,15.20379472]
[1641498733204,6.184,153.86,153.8,15.20379472]
[1641498733600,4.0,153.83,153.8,15.20379472]
[1641498734000,7.13998583,153.85,153.79,13.7584496]
[1641498734403,3.13998583,153.85,153.79,13.7584496]
[1641498734803,60.19008583,153.85,153.79,13.7584496]
[1641498735002,27.66479,153.84,153.79,13.7584496]
[1641498735202,44.56082963,153.84,153.77,13.7584496]
[1641498735902,48.56082963,153.84,153.77,13.7584496]
[1641498736304,3.14070726,153.83,153.78,13.7584496]
[1641498737204,27.66479,153.84,153.77,13.7584496]
[1641498737402,57.0501,153.85,153.78,4.0]
[1641498737604,57.0501,153.85,153.77,13.7584496]
[1641498738005,64.43208395,153.88,153.77,17.7584496]
[1641498738206,3.13965649,153.84,153.79,15.20379472]
[1641498738404,3.13965649,153.84,153.79,20.53279472]
[1641498739107,3.13961689,153.86,153.8,1.44534512]
[1641498739906,16.89489107,153.86,153.79,25.99885162]
[1641498740809,3.13961689,153.86,153.8,15.20400547]
[1641498741609,61.9559,153.87,153.8,15.20400547]
[1641498742112,27.66479,153.88,153.8,15.20400547]
[1641498742311,27.66479,153.88,153.8,19.20400547]
[1641498742610,3.1390742,153.86,153.8,19.20400547]
[1641498743211,3.13868319,153.87,153.81,19.20400547]
[1641498743411,3.13868319,153.87,153.81,15.20400547]
[1641498744314,27.66479,153.88,153.81,13.7584496]
[1641498745115,3.13884632,153.87,153.81,13.7584496]
[1641498745318,3.13884632,153.87,153.81,17.7584496]
[1641498745515,3.13884632,153.87,153.81,13.7584496]
[1641498745715,27.66479,153.88,153.81,13.7584496]
[1641498745916,27.66479,153.88,153.82,1.44555587]
[1641498747017,3.13871857,153.87,153.82,13.7584496]
[1641498747220,9.55071857,153.87,153.82,13.7584496]
[1641498747616,6.412,153.87,153.82,13.7584496]
[1641498747816,6.412,153.87,153.81,13.7584496]
[1641498749016,3.13927549,153.86,153.8,13.7584496]
[1641498749820,6.412,153.87,153.8,13.7584496]
[1641498750121,6.412,153.87,153.79,13.7584496]
[1641498750719,16.8951643,153.86,153.79,13.7584496]
[1641498751420,6.412,153.87,153.79,13.7584496]
[1641498751619,20.16732858,153.87,153.79,13.7584496]
[1641498752225,16.89498008,153.86,153.79,13.7584496]
[1641498753122,17.84114907,153.87,153.79,13.7584496]
[1641498754023,3.13943524,153.86,153.8,13.7584496]
[1641498754724,13.75481216,153.87,153.8,13.7584496]
[1641498754924,13.75481216,153.86,153.79,15.20400547]
[1641498755526,14.56764112,153.87,153.79,15.20400547]
[1641498755527,14.56764112,153.87,153.79,13.7584496]
[1641498756325,13.75465616,153.86,153.79,13.7584496]
[1641498757127,4.0,153.86,153.79,13.7584496]
[1641498757326,27.66479,153.85,153.79,13.7584496]
[1641498758027,30.80416689,153.85,153.79,13.7584496]
[1641498758729,3.13938931,153.84,153.79,13.7584496]
[1641498759529,27.66479,153.85,153.83,4.58484436]
[1641498760330,3.13940336,153.84,153.79,13.7584496]
[1641498761133,27.66479,153.85,153.83,4.58492]
[1641498761331,6.715,153.84,153.83,4.58492]
[1641498761831,6.715,153.84,153.79,13.7584496]
[1641498762030,9.8544266,153.84,153.8,13.7584496]
[1641498762833,6.715,153.84,153.83,4.58489113]
[1641498763634,6.715,153.84,153.8,13.7584496]
[1641498763832,9.85439199,153.84,153.8,22.11540749]
[1641498764134,27.66479,153.83,153.8,22.11540749]
[1641498764734,30.80480891,153.83,153.81,4.58542378]
[1641498765534,3.14034728,153.82,153.77,13.7584496]
[1641498766435,27.66479,153.83,153.81,4.58564545]
[1641498767135,27.66479,153.83,153.77,13.7584496]
[1641498767339,3.1405608,153.82,153.8,4.58587536]
[1641498768040,13.75762607,153.84,153.77,13.7584496]
[1641498768240,13.75762607,153.84,153.76,13.7584496]
[1641498768438,61.0691,153.83,153.76,13.7584496]
[1641498768638,88.73389,153.83,153.76,13.7584496]
[1641498768938,88.73389,153.83,153.8,4.58586898]
[1641498769140,27.66479,153.83,153.8,4.58586898]
[1641498769839,3.14055314,153.82,153.76,15.20400547]
[1641498770438,3.14055314,153.82,153.76,19.20400547]
[1641498770638,11.43205437,153.84,153.8,4.58578785]
[1641498771440,27.66479,153.85,153.77,56.1887]
[1641498771640,3.14000101,153.84,153.81,4.58540887]
[1641498772239,41.4210166,153.85,153.78,13.7584496]
[1641498772440,41.4210166,153.85,153.78,22.11540749]
[1641498773441,3.13983952,153.84,153.81,4.58527429]
[1641498773642,9.34783952,153.84,153.81,4.58527429]
[1641498774141,3.14006158,153.83,153.78,22.11540749]
[1641498775041,6.208,153.84,153.78,15.20400547]
[1641498775242,19.96437803,153.84,153.81,4.58553589]
[1641498775945,3.14016623,153.83,153.78,1.44555587]
[1641498776544,27.66479,153.85,153.78,1.44555587]
[1641498776843,41.42140506,153.85,153.81,4.58553835]
[1641498777443,3.14015722,153.84,153.78,22.11538293]
[1641498777643,3.14015722,153.84,153.78,26.11538293]
[1641498778044,3.14015722,153.84,153.78,22.11538293]
[1641498778244,41.42140506,153.85,153.78,22.11538293]
[1641498778443,27.66479,153.85,153.82,4.58513554]
[1641498779344,27.66479,153.85,153.84,4.5848323]
[1641498780644,30.80405102,153.85,153.8,22.11538293]
[1641498781044,30.80405102,153.85,153.83,4.0]
[1641498781248,30.80405102,153.85,153.83,8.619]
[1641498781446,27.66479,153.85,153.83,4.619]
[1641498782145,27.66479,153.85,153.81,17.7584496]
[1641498782445,27.66479,153.85,153.84,1.44555587]
[1641498784251,27.66479,153.85,153.82,15.20410696]
[1641498786960,27.66479,153.85,153.82,6.0039034]
[1641498788756,6.605,153.87,153.84,4.0]
[1641498788956,6.605,153.87,153.82,6.0039034]
[1641498789160,19.20873811,153.92,153.82,6.0039034]
[1641498789358,61.4047,153.91,153.82,10.0039034]
[1641498789557,61.4047,153.91,153.82,6.0039034]
[1641498789957,61.4047,153.91,153.84,4.0]
[1641498790157,5.227,153.92,153.82,6.0039034]
[1641498790458,4.55813067,153.89,153.84,4.0]
[1641498790658,4.55813067,153.89,153.85,4.0]
[1641498790859,4.55813067,153.89,153.88,27.66479]
[1641498791257,13.67473811,153.93,153.88,27.66479]
[1641498791462,105.48606207,153.96,153.88,32.22303604]
[1641498791860,101.48606207,153.96,153.88,32.22303604]
[1641498792358,4.55637207,153.94,153.88,27.66479]
[1641498793158,3.11901688,153.95,153.87,4.55824604]
[1641498794059,4.55708696,153.93,153.86,4.55824604]
[1641498794259,10.25308696,153.93,153.86,4.55824604]
[1641498794760,5.696,153.93,153.86,4.55824604]
[1641498795261,5.696,153.93,153.87,4.0]
[1641498795461,5.696,153.93,153.86,8.55824604]
[1641498795662,5.696,153.93,153.87,4.55824604]
[1641498796963,33.36079,153.93,153.87,4.55824604]
[1641498797164,4.0,153.91,153.87,4.55824604]
[1641498797363,4.0,153.9,153.87,4.26164604]
[1641498797564,4.0,153.9,153.86,4.26164604]
[1641498797964,4.0,153.91,153.86,4.26164604]
[1641498798369,4.0,153.91,153.85,1.43775649]
[1641498798370,4.55727251,153.9,153.83,4.26164604]
[1641498798968,32.22206251,153.9,153.83,4.26164604]
[1641498800269,27.66479,153.9,153.84,4.26164604]
[1641498801270,32.22206251,153.9,153.83,4.26164604]
[1641498802072,32.22206251,153.9,153.82,4.26164604]
[1641498802272,4.0,153.89,153.82,4.26164604]
[1641498802471,4.0,153.87,153.82,4.26164604]
[1641498802881,27.66479,153.84,153.81,1.43775649]
[1641498803075,32.04879,153.84,153.8,4.26164604]
[1641498804178,24.71287689,153.84,153.8,4.26164604]
[1641498806277,24.71287689,153.84,153.81,4.26164604]
[1641498808079,4.384,153.84,153.81,13.7584496]
[1641498808279,4.55727251,153.85,153.81,13.7584496]
[1641498809180,4.55727251,153.85,153.84,4.58513768]
[1641498809884,3.13969413,153.86,153.84,4.58513768]
[1641498813890,4.58518035,153.85,153.84,4.58513768]
[1641498814689,8.035e-05,153.85,153.84,4.58513768]
[1641498814889,13.67473811,153.88,153.84,4.0]
[1641498815088,4.58431031,153.86,153.84,33.10254649]
[1641498815487,4.58431031,153.86,153.84,29.10254649]
[1641498816090,3.13793371,153.91,153.85,22.0673046]
[1641498816688,3.13793371,153.91,153.85,26.0673046]
[1641498817090,16.81267182,153.93,153.86,13.7584496]
[1641498819294,16.81267182,153.93,153.86,17.7584496]
[1641498819892,16.81267182,153.93,153.86,13.7584496]
[1641498820095,16.81267182,153.93,153.86,17.7584496]
[1641498820294,16.81267182,153.93,153.87,4.0]
[1641498820494,16.81267182,153.93,153.88,4.0]
[1641498820695,16.81267182,153.93,153.86,13.7584496]
[1641498820897,3.13793371,153.93,153.88,13.7584496]
[1641498821900,3.13793371,153.93,153.88,1.43775649]
[1641498822700,3.13793371,153.93,153.88,15.19620609]
[1641498822898,3.13793371,153.93,153.88,22.10669632]
[1641498823600,3.13793371,153.93,153.88,26.10669632]
[1641498823800,3.13793371,153.93,153.88,15.19620609]
[1641498824100,16.81267182,153.93,153.88,1.43775649]
[1641498824399,16.81267182,153.93,153.89,4.0]
[1641498824600,16.81267182,153.93,153.88,5.43775649]
[1641498824800,13.67473811,153.93,153.9,1.43775649]
[1641498825001,16.81267182,153.95,153.9,1.43775649]
[1641498825202,16.81267182,153.95,153.91,27.66479]
[1641498825800,3.13793371,153.95,153.91,27.66479]
[1641498826601,13.67473811,153.96,153.92,1.43775649]
[1641498826801,16.81267182,153.97,153.92,1.43775649]
[1641498827803,16.81267182,153.97,153.9,13.7584496]
[1641498829206,16.81267182,153.97,153.91,27.66479]
[1641498829607,3.13793371,153.97,153.91,41.4232396]
[1641498830408,3.13793371,153.97,153.92,1.43775649]
[1641498833609,16.81267182,153.97,153.92,1.43775649]
[1641498835411,44.47746182,153.97,153.92,1.43775649]
[1641498836210,4.0,153.96,153.92,1.43775649]
[1641498836410,9.551,153.96,153.92,1.43775649]
[1641498836616,13.67473811,153.95,153.88,22.1067336]
[1641498836811,74.30213811,153.95,153.88,22.1067336]
[1641498837010,4.0,153.94,153.88,22.1067336]
[1641498837411,27.66479,153.92,153.88,22.1067336]
[1641498837612,27.66479,153.92,153.84,22.1067336]
[1641498837613,47.58252811,153.92,153.84,22.1067336]
[1641498837811,4.0,153.89,153.84,22.1067336]
[1641498838813,4.0,153.89,153.82,13.7584496]
[1641498838814,3.13793371,153.88,153.82,13.7584496]
[1641498839013,10.08393371,153.88,153.82,13.7584496]
[1641498839913,3.13793371,153.87,153.83,13.7584496]
[1641498840912,3.13793371,153.87,153.82,13.7584496]
[1641498842313,3.13793371,153.87,153.83,13.7584496]
[1641498842513,9.24893371,153.87,153.83,13.7584496]
[1641498842916,6.111,153.87,153.83,13.7584496]
[1641498843113,6.111,153.87,153.82,13.7584496]
[1641498844816,6.111,153.87,153.83,13.7584496]
[1641498845016,70.57543811,153.9,153.83,13.7584496]
[1641498845618,3.13862424,153.89,153.84,13.7584496]
[1641498847620,30.80341424,153.89,153.84,13.7584496]
[1641498848420,30.80341424,153.89,153.86,13.7584496]
[1641498848421,27.66479,153.89,153.86,13.7584496]
[1641498848619,56.9007,153.9,153.86,20.5704496]
[1641498848920,27.66479,153.92,153.86,20.5704496]
[1641498849120,13.67473811,153.94,153.88,4.0]
[1641498849320,13.67473811,153.94,153.87,1.43775649]
[1641498849521,13.67473811,153.94,153.89,27.66479]
[1641498850220,16.81138945,153.97,153.9,13.7584496]
[1641498851324,16.81138945,153.97,153.9,22.1067336]
[1641498852421,16.81138945,153.97,153.9,26.1067336]
[1641498852621,16.81138945,153.97,153.9,22.1067336]
[1641498856728,22.08838945,153.97,153.9,22.1067336]
[1641498857631,16.81138945,153.96,153.9,1.43775649]
[1641498859335,13.67473811,153.95,153.9,1.43775649]
[1641498859738,41.33952811,153.95,153.9,1.43775649]
[1641498860036,27.66479,153.95,153.89,13.7584496]
[1641498860938,3.13665134,153.94,153.89,13.7584496]
[1641498861739,3.13665134,153.94,153.9,13.7584496]
[1641498862438,3.13665134,153.95,153.89,13.7584496]
[1641498862841,3.13665134,153.95,153.89,24.9984496]
[1641498863240,3.13665134,153.95,153.9,4.0]
[1641498863540,3.13665134,153.95,153.9,17.7584496]
[1641498863842,3.13665134,153.95,153.9,45.4232396]
[1641498864340,3.13665134,153.95,153.91,1.43775649]
[1641498865442,57.8443,153.96,153.91,1.43775649]
[1641498865641,57.8443,153.96,153.91,22.10665289]
[1641498866641,3.13591754,153.95,153.9,13.7584496]
[1641498867543,9.52,153.98,153.9,13.7584496]
[1641498867942,9.52,153.98,153.9,41.4232396]
[1641498868341,16.88114712,153.97,153.9,41.4232396]
[1641498869143,7.238,153.97,153.91,1.43775649]
[1641498870044,3.13589581,153.96,153.91,1.43775649]
[1641498870646,7.238,153.97,153.9,69.0880296]
[1641498871147,7.238,153.97,153.9,41.4232396]
[1641498871550,3.13587903,153.96,153.91,1.44593614]
[1641498872147,7.238,153.97,153.9,13.7584496]
[1641498872448,13.74645618,153.96,153.89,13.7584496]
[1641498873049,11.41672419,153.98,153.89,13.7584496]
[1641498873351,3.1361549,153.96,153.89,13.7584496]
[1641498873849,13.74613519,153.97,153.89,13.7584496]
[1641498874051,13.74613519,153.97,153.9,41.4232396]
[1641498874750,14.55260776,153.98,153.91,1.44589016]
[1641498875552,14.55260776,153.98,153.94,4.58168083]
[1641498875553,13.74504249,153.97,153.94,4.58168083]
[1641498875751,18.59304249,153.97,153.94,4.58168083]
[1641498876757,3.13588357,153.96,153.91,1.44589016]
[1641498877656,13.74497983,153.98,153.91,1.44589016]
[1641498877857,13.74497983,153.97,153.94,4.58168188]
[1641498878357,20.17497983,153.97,153.94,4.58168188]
[1641498879057,6.43,153.97,153.9,15.20433976]
[1641498879560,16.88075619,153.98,153.9,15.20433976]
[1641498879958,3.13571908,153.96,153.94,4.58161967]
[1641498880858,6.805,153.97,153.91,13.7584496]
[1641498881558,6.805,153.97,153.93,4.58185015]
[1641498881758,3.13565714,153.96,153.93,4.58185015]
[1641498882657,6.805,153.97,153.94,4.58177921]
[1641498882859,13.74533763,153.98,153.94,4.58177921]
[1641498883359,13.74533763,153.98,153.9,17.7584496]
[1641498883559,61.8882,153.99,153.9,19.20433976]
[1641498883763,61.8882,153.99,153.9,15.20433976]
[1641498884164,61.8882,153.99,153.91,27.66479]
[1641498884564,3.12392385,153.98,153.92,4.56455158]
[1641498885268,61.8882,153.99,153.93,4.56455158]
[1641498886168,61.8882,153.99,153.92,1.44589016]
[1641498886971,61.8882,153.99,153.94,4.56428787]
[1641498888070,61.8882,153.99,153.92,1.44589016]
[1641498888977,3.13501505,153.98,153.96,4.58109518]
[1641498889873,75.63353763,153.99,153.92,22.11461691]
[1641498890874,61.8882,153.99,153.92,22.11461691]
[1641498891073,3.13495879,153.98,153.96,4.5810483]
[1641498891873,3.1349108,153.99,153.93,13.7584496]
[1641498892773,31.66479,154.0,153.96,4.58102447]
[1641498893574,31.66479,154.0,153.93,13.7584496]
[1641498893775,3.13491733,153.99,153.93,22.11461691]
[1641498894376,31.66479,154.0,153.96,4.58102096]
[1641498895177,31.66479,154.0,153.93,22.11461691]
[1641498895376,3.13492771,153.99,153.93,22.11461691]
[1641498896078,17.74306721,154.0,153.96,4.58100792]
[1641498896980,3.13491893,153.99,153.97,4.58101509]
[1641498897679,31.66479,154.0,153.93,22.11461691]
[1641498897880,45.40780146,154.0,153.93,22.11461691]
[1641498898483,31.66479,154.0,153.93,22.11461691]
[1641498898683,3.13491446,153.99,153.97,4.58101136]
[1641498899283,31.66479,154.0,153.94,13.7584496]
[1641498900386,3.13500066,153.99,153.96,4.5810832]
[1641498901385,31.66479,154.0,153.93,22.11461691]
[1641498902487,3.13508986,153.99,153.96,4.58115753]
[1641498903196,45.40826258,154.0,153.93,22.11461691]
[1641498904196,3.13508837,153.99,153.96,4.58115628]
[1641498905992,45.40826258,154.0,153.93,15.20433976]
[1641498906192,13.74347258,153.99,153.93,1.44589016]
[1641498906693,31.66479,154.0,153.93,1.44589016]
[1641498906895,4.58099797,153.97,153.96,4.58099797]
[1641498907596,4.0,154.0,153.93,22.11460394]
[1641498908195,31.66479,154.0,153.93,22.11460394]
[1641498909099,3.13484658,153.99,153.97,4.58095479]
[1641498909798,31.66479,154.0,153.93,22.11460394]
[1641498909996,31.66479,154.0,153.96,4.58104684]
[1641498910596,3.13497393,153.99,153.93,22.11460394]
[1641498911396,9.24197393,153.99,153.93,22.11460394]
[1641498911597,6.107,153.99,153.96,4.58106657]
[1641498912998,3.13522166,153.98,153.92,22.11460394]
[1641498914501,3.13506515,153.99,153.96,4.58113693]
[1641498915104,31.66479,154.0,153.97,4.58110042]
[1641498915605,27.66479,154.0,153.97,4.58110042]
[1641498915903,27.66479,154.0,153.93,13.7584496]
[1641498916105,3.13521793,153.99,153.96,4.58126425]
[1641498917003,52.32358276,154.0,153.93,22.11460394]
[1641498917806,3.13516352,153.99,153.96,4.58121891]
[1641498918604,52.32358276,154.0,153.93,22.11460394]
[1641498919008,24.65879276,154.0,153.93,22.11460394]
[1641498919304,24.65879276,154.0,153.96,4.58120956]
[1641498919505,3.1351523,153.99,153.96,4.58120956]
[1641498920207,13.74379276,153.99,153.93,1.44589016]
[1641498921012,38.57979,154.0,153.93,1.44589016]
[1641498921320,3.13516601,153.99,153.96,4.58122098]
[1641498921908,13.74268563,153.99,153.95,4.58089521]
[1641498922710,27.66479,154.0,153.93,1.44589016]
[1641498922911,3.13457195,153.99,153.96,4.58072594]
[1641498924109,41.40696781,154.0,153.93,22.11456767]
[1641498925014,3.13463143,153.99,153.96,4.5807755]
[1641498925713,7.13463143,153.99,153.96,4.5807755]
[1641498925911,4.0,153.99,153.93,22.11456767]
[1641498926112,4.0,153.98,153.93,22.11456767]
[1641498926511,27.66479,153.96,153.93,22.11456767]
[1641498926712,32.72379,153.96,153.93,15.20433976]
[1641498926912,32.72379,153.96,153.93,4.5815257]
[1641498927313,36.72379,153.96,153.93,4.5815257]
[1641498928416,36.72379,153.96,153.9,13.7584496]
[1641498928615,64.38858,153.96,153.9,13.7584496]
[1641498928814,3.13582279,153.95,153.89,22.11476201]
[1641498929416,64.38858,153.96,153.89,22.11476201]
[1641498929615,13.74639087,153.95,153.91,4.58213029]
[1641498929815,67.17859087,153.95,153.91,4.58213029]
[1641498930620,3.13598473,153.94,153.92,4.58190325]
[1641498931320,53.4322,153.95,153.89,13.7584496]
[1641498931519,53.4322,153.95,153.93,4.58179127]
[1641498932121,53.4322,153.95,153.89,13.7584496]
[1641498932321,3.13581119,153.94,153.9,13.7584496]
[1641498932723,53.4322,153.95,153.9,13.7584496]
[1641498933024,53.4322,153.95,153.92,4.58192114]
[1641498933226,74.13395381,153.96,153.92,4.58192114]
[1641498933627,60.38858,153.96,153.89,13.7584496]
[1641498933825,3.1360084,153.94,153.89,13.7584496]
[1641498934425,16.88339145,153.95,153.91,4.58230729]
[1641498935128,16.88339145,153.95,153.88,13.7584496]
[1641498936229,16.88339145,153.95,153.91,4.58220986]
[1641498936927,16.88339145,153.95,153.88,13.7584496]
[1641498937626,3.13646958,153.95,153.92,4.58200987]
[1641498938725,46.47071187,153.96,153.89,13.7584496]
[1641498938928,32.72379,153.96,153.94,4.58154134]
[1641498939527,3.13552494,153.95,153.9,13.7584496]
[1641498940429,9.44037855,153.95,153.94,4.58137855]
[1641498941228,4.859,153.95,153.93,4.57235366]
[1641498941429,32.23714366,153.96,153.93,4.57235366]
[1641498942030,27.66479,153.96,153.89,13.7584496]
[1641498942230,27.66479,153.96,153.9,13.7584496]
[1641498942830,27.66479,153.96,153.94,4.57216249]
[1641498943030,32.23695249,153.96,153.94,4.57216249]
[1641498943833,27.66479,153.96,153.9,13.7584496]
[1641498944131,4.0,153.95,153.9,13.7584496]
[1641498944731,8.57263777,153.95,153.92,4.57263777]
[1641498945431,4.0,153.95,153.89,13.7584496]
[1641498946032,8.57252735,153.95,153.93,4.57252735]
[1641498946833,27.66479,153.96,153.89,13.7584496]
[1641498947033,4.0,153.95,153.92,4.57252972]
[1641498947233,27.66479,153.96,153.92,4.57252972]
[1641498947434,57.3646,153.98,153.92,4.57252972]
[1641498947638,57.3646,153.98,153.92,5.838]
[1641498947834,13.71706099,153.99,153.95,4.58125798]
[1641498948639,13.71706099,153.99,153.92,17.7584496]
[1641498948841,3.13426387,153.99,153.98,4.5804692]
[1641498950040,14.5446109,154.03,153.96,1.44594551]
[1641498950239,6.73,154.0,153.96,1.44594551]
[1641498950840,6.73,154.0,153.95,27.66479]
[1641498951042,3.13394743,153.99,153.97,4.58034729]
[1641498952045,6.73,154.0,153.94,13.7584496]
[1641498952245,59.5118,154.0,153.94,13.7584496]
[1641498952845,3.13415009,153.99,153.97,4.58037438]
[1641498953346,9.05015009,153.99,153.97,4.58037438]
[1641498953746,5.916,153.99,153.94,13.7584496]
[1641498954448,3.13417371,153.98,153.97,4.58039407]
[1641498955850,4.0,153.98,153.94,13.7584496]
[1641498956749,7.13464911,153.97,153.95,4.58079024]
[1641498957149,27.66479,153.96,153.95,4.58079024]
[1641498957553,27.66479,153.96,153.92,13.7584496]
[1641498957752,30.80011299,153.96,153.94,4.5813518]
[1641498958653,27.66479,153.96,153.91,22.11485545]
[1641498958855,27.66479,153.96,153.95,4.58131338]
[1641498959456,27.66479,153.96,153.91,13.7584496]
[1641498959658,30.80007688,153.96,153.91,13.7584496]
[1641498960257,27.66479,153.96,153.92,13.7584496]
[1641498960957,13.74305824,153.99,153.92,13.7584496]
[1641498961157,56.7818,154.0,153.93,13.7584496]
[1641498961457,4.0,153.99,153.93,13.7584496]
[1641498961957,4.0,153.99,153.96,4.58081378]
[1641498962157,3.13467736,153.98,153.96,4.58081378]
[1641498963061,13.74371181,153.98,153.94,4.58123727]
[1641498963264,27.66479,153.97,153.94,4.58123727]
[1641498963767,27.66479,153.97,153.91,22.11485545]
[1641498964564,4.5813053,153.95,153.91,20.66862961]
[1641498964764,4.5813053,153.95,153.91,13.7584496]
[1641498965564,59.7771,153.96,153.91,13.7584496]
[1641498965765,3.13547262,153.95,153.93,4.58147649]
[1641498966264,55.3971,153.96,153.9,13.7584496]
[1641498966467,55.3971,153.96,153.92,4.57685567]
[1641498966665,55.3971,153.96,153.92,10.91985567]
[1641498967668,27.66479,153.97,153.92,10.91985567]
[1641498967868,54.1024,153.99,153.93,4.57703434]
[1641498968068,3.13256115,153.95,153.93,6.02326018]
[1641498968669,13.73110303,153.98,153.92,10.343]
[1641498968869,3.13136271,153.99,153.93,13.7584496]
[1641498969270,3.13136271,153.99,153.94,27.66479]
[1641498970070,9.74,154.0,153.96,4.57604767]
[1641498970273,9.74,154.0,153.96,9.63004767]
[1641498970471,13.73110303,154.01,153.96,9.63004767]
[1641498971173,3.13123284,153.99,153.97,6.02059794]
[1641498971875,13.73110303,154.02,153.96,5.054]
[1641498972075,16.86540732,154.02,153.98,4.58050288]
[1641498973175,51.1678,154.03,153.97,1.44620314]
[1641498973775,51.1678,154.03,153.95,65.7632496]
[1641498973978,16.87577972,154.02,153.98,4.58049497]
[1641498974476,20.87577972,154.02,153.98,4.58049497]
[1641498974677,4.0,154.01,153.95,65.7632496]
[1641498975076,4.0,154.02,153.95,65.7632496]
[1641498975478,4.0,154.02,153.95,13.7584496]
[1641498975678,16.87709197,154.01,153.97,4.58080741]
[1641498976378,15.41299088,154.02,153.94,22.11482631]
[1641498977180,43.07778088,154.02,153.94,22.11482631]
[1641498977378,16.87707465,154.01,153.97,4.58080329]
[1641498978282,31.66479,154.02,153.94,28.15182631]
[1641498978480,45.40653865,154.02,153.98,4.58058288]
[1641498979283,45.40653865,154.02,153.95,15.20458803]
[1641498979480,16.87634358,154.01,153.97,4.58074508]
[1641498980183,31.66479,154.02,153.94,15.20458803]
[1641498980382,13.74241919,154.0,153.96,4.5808064]
[1641498981081,4.58081518,153.97,153.94,1.44613843]
[1641498981984,3.13467904,154.01,153.94,1.44613843]
[1641498982185,3.13467904,154.01,153.94,13.7584496]